bitfinex-derivatives/quotes_BTCF0:USTF0_20241213
["timestamp","ask_amount","ask_price","bid_price","bid_amount"]
[1734115771189,0.96884033,101610.0,101600.0,0.07830802]
[1734115772985,0.96884087,101610.0,101600.0,0.07830802]
[1734115773594,1.05696005,101610.0,101600.0,0.07830802]
[1734115773780,0.049205,101590.0,101580.0,0.07368585]
[1734115773981,0.50294208,101590.0,101580.0,0.07368585]
[1734115774186,0.50294208,101590.0,101580.0,0.57368585]
[1734115774387,0.51822719,101590.0,101580.0,0.07368585]
[1734115774592,0.51822719,101590.0,101580.0,0.12289485]
[1734115774889,0.87902719,101590.0,101570.0,0.549214]
[1734115775085,0.54372253,101580.0,101570.0,0.579814]
[1734115775285,0.51823119,101580.0,101570.0,0.579814]
[1734115776081,0.51823227,101580.0,101570.0,0.579814]
[1734115776281,0.50294608,101580.0,101570.0,0.579814]
[1734115776893,0.50294608,101580.0,101570.0,0.549214]
[1734115777196,0.50294608,101580.0,101570.0,0.579814]
[1734115778284,0.50294608,101580.0,101570.0,0.59008379]
[1734115779295,0.50294608,101580.0,101570.0,0.8252871]
[1734115779594,0.410009,101580.0,101570.0,0.7620731]
[1734115779999,0.410009,101580.0,101570.0,0.52686979]
[1734115780390,0.410009,101580.0,101570.0,0.7620731]
[1734115781601,0.410009,101580.0,101570.0,0.8112871]
[1734115781991,0.15261951,101590.0,101580.0,0.049209]
[1734115782290,0.049207,101590.0,101580.0,1.53201291]
[1734115782495,0.06450033,101590.0,101580.0,1.19927837]
[1734115782787,0.06450033,101590.0,101580.0,0.8421845]
[1734115782788,0.049207,101590.0,101580.0,0.8421845]
[1734115782994,0.06450033,101590.0,101580.0,1.3421845]
[1734115783292,0.06450033,101590.0,101580.0,1.45949506]
[1734115783800,0.06450033,101590.0,101580.0,1.45899506]
[1734115784299,0.42530033,101590.0,101580.0,1.45899506]
[1734115784604,0.06450033,101590.0,101580.0,1.45899506]
[1734115785608,0.049207,101590.0,101580.0,1.45899506]
[1734115786199,0.42533774,101590.0,101580.0,1.10634129]
[1734115786591,0.42533774,101590.0,101580.0,2.30634129]
[1734115787800,0.42533774,101590.0,101580.0,2.65899506]
[1734115787990,0.42533774,101590.0,101580.0,1.10634129]
[1734115788394,0.42533774,101590.0,101580.0,2.65899506]
[1734115788597,0.42533774,101590.0,101580.0,2.65877018]
[1734115788995,0.42533774,101590.0,101580.0,1.45877018]
[1734115789189,0.42533774,101590.0,101580.0,0.79249908]
[1734115789190,0.51827482,101590.0,101580.0,0.79249908]
[1734115789505,0.50294408,101590.0,101580.0,0.52945482]
[1734115789702,0.59106326,101590.0,101580.0,0.23559167]
[1734115790295,0.49812618,101590.0,101580.0,1.02945482]
[1734115790595,0.49812618,101590.0,101580.0,0.52945482]
[1734115790788,0.49812618,101590.0,101580.0,1.02945482]
[1734115791293,0.49812618,101590.0,101580.0,1.29423655]
[1734115792301,0.59106326,101590.0,101580.0,0.79439128]
[1734115792502,0.59106326,101590.0,101580.0,0.23559167]
[1734115792503,0.72635667,101590.0,101580.0,0.23559167]
[1734115792693,0.87321761,101590.0,101570.0,1.06055482]
[1734115792889,0.61645143,101580.0,101570.0,1.32666984]
[1734115793095,0.59093318,101580.0,101570.0,1.32666984]
[1734115793708,0.59093318,101580.0,101570.0,1.32616984]
[1734115794499,0.23013318,101580.0,101570.0,1.32616984]
[1734115794701,0.59093318,101580.0,101570.0,1.32666984]
[1734115794904,0.59093318,101580.0,101570.0,1.06055482]
[1734115796802,0.59093318,101580.0,101570.0,1.06005482]
[1734115797406,0.6008937,101580.0,101570.0,1.06005482]
[1734115797601,0.6008937,101580.0,101570.0,0.76619167]
[1734115797993,0.6008937,101580.0,101570.0,1.06005482]
[1734115799509,0.6008937,101580.0,101570.0,1.3262409]
[1734115799810,0.6008937,101580.0,101570.0,1.06005482]
[1734115800009,0.6008937,101580.0,101570.0,0.76619167]
[1734115800205,0.69383078,101580.0,101570.0,0.23559167]
[1734115800407,0.69383078,101580.0,101560.0,1.02995482]
[1734115800408,0.049214,101570.0,101560.0,1.02995482]
[1734115800619,0.70842693,101570.0,101560.0,0.18609167]
[1734115800802,0.7206457,101570.0,101560.0,0.0005]
[1734115801201,0.72063986,101570.0,101560.0,0.0005]
[1734115801704,0.72063986,101570.0,101550.0,0.82396315]
[1734115801904,0.52812986,101560.0,101550.0,1.09090552]
[1734115802199,0.50295608,101560.0,101550.0,1.06080552]
[1734115802507,0.049224,101550.0,101540.0,0.79534019]
[1734115802709,0.64143824,101550.0,101540.0,0.50147704]
[1734115803014,0.049234,101530.0,101520.0,0.79386315]
[1734115803212,0.770834,101530.0,101520.0,0.5]
[1734115803399,0.87911161,101530.0,101520.0,0.5]
[1734115803598,0.89487108,101530.0,101510.0,0.70843134]
[1734115803910,0.54369683,101520.0,101510.0,0.20843134]
[1734115804210,0.51830754,101520.0,101510.0,0.70843134]
[1734115804508,0.01533146,101520.0,101510.0,0.75450423]
[1734115804712,0.01533146,101520.0,101510.0,2.30486044]
[1734115804907,0.41003,101540.0,101530.0,0.049234]
[1734115804908,0.47457109,101540.0,101530.0,0.049234]
[1734115805108,0.41003,101540.0,101530.0,0.22552291]
[1734115805304,0.41003,101540.0,101530.0,0.75822291]
[1734115805498,0.41003,101540.0,101530.0,1.45822291]
[1734115805907,0.41003,101540.0,101530.0,2.08275999]
[1734115806107,0.41003,101540.0,101530.0,1.98982291]
[1734115809206,0.50296708,101540.0,101530.0,1.99977849]
[1734115809419,0.50296708,101540.0,101530.0,0.67628891]
[1734115809613,0.50296708,101540.0,101530.0,0.5]
[1734115809920,0.049234,101530.0,101520.0,1.87628891]
[1734115810116,0.50297108,101530.0,101520.0,1.37628891]
[1734115810417,0.50297108,101530.0,101520.0,0.67628891]
[1734115810720,0.410034,101530.0,101520.0,0.67628891]
[1734115810916,0.410034,101530.0,101520.0,1.87628891]
[1734115811117,0.50297108,101530.0,101520.0,1.87628891]
[1734115811311,0.50297108,101530.0,101520.0,0.5]
[1734115811519,0.049239,101520.0,101510.0,0.5]
[1734115811712,0.50297608,101520.0,101500.0,0.87889108]
[1734115811911,0.410043,101510.0,101500.0,2.07889108]
[1734115812113,0.410043,101510.0,101500.0,1.57889747]
[1734115812314,0.410043,101510.0,101500.0,2.03580276]
[1734115813818,0.001,101520.0,101510.0,0.049243]
[1734115814111,0.410034,101530.0,101520.0,0.049239]
[1734115814312,0.410034,101530.0,101520.0,0.110539]
[1734115814519,0.410034,101530.0,101520.0,0.610539]
[1734115814918,0.410034,101530.0,101520.0,0.110539]
[1734115815107,0.410034,101530.0,101520.0,0.610539]
[1734115815306,0.410034,101530.0,101520.0,0.87936388]
[1734115815511,0.50297108,101530.0,101520.0,0.6758878]
[1734115815712,0.410034,101530.0,101520.0,0.5]
[1734115816025,0.049239,101520.0,101510.0,0.7251308]
[1734115816318,0.049239,101520.0,101510.0,0.2251308]
[1734115816319,0.410039,101520.0,101510.0,0.2251308]
[1734115816720,0.410039,101520.0,101510.0,0.7251308]
[1734115816922,0.410039,101520.0,101510.0,0.2251308]
[1734115817314,0.410039,101520.0,101510.0,0.7251308]
[1734115817615,0.050239,101520.0,101510.0,0.2251308]
[1734115817816,0.050239,101520.0,101510.0,0.7251308]
[1734115817817,0.411039,101520.0,101510.0,0.7251308]
[1734115818023,0.411039,101520.0,101510.0,0.2251308]
[1734115818418,0.050239,101520.0,101510.0,0.86116012]
[1734115818617,0.050239,101520.0,101510.0,0.36116012]
[1734115818825,0.050239,101520.0,101510.0,0.31806788]
[1734115819024,0.050239,101520.0,101510.0,2.01806788]
[1734115819214,0.050239,101520.0,101510.0,1.51806788]
[1734115819621,0.050239,101520.0,101510.0,2.01806788]
[1734115819824,0.411039,101520.0,101510.0,2.01806788]
[1734115820419,0.411039,101520.0,101510.0,1.9251308]
[1734115821718,0.001,101520.0,101510.0,2.01806788]
[1734115821924,0.001,101520.0,101510.0,1.84218008]
[1734115823027,0.001,101520.0,101510.0,2.13599493]
[1734115823222,0.001,101520.0,101510.0,2.06146024]
[1734115823418,0.001,101520.0,101510.0,2.17908717]
[1734115823723,0.001,101520.0,101510.0,2.45065109]
[1734115824117,0.001,101520.0,101510.0,2.06200263]
[1734115824118,0.411039,101520.0,101510.0,2.06200263]
[1734115824328,0.42633608,101520.0,101510.0,2.08665009]
[1734115824823,0.42633608,101520.0,101510.0,1.96862209]
[1734115825513,0.42633608,101520.0,101510.0,1.91943765]
[1734115825722,0.51927316,101520.0,101510.0,0.17685496]
[1734115825914,0.62761316,101520.0,101510.0,0.0005]
[1734115826624,0.049243,101510.0,101500.0,0.1]
[1734115826829,0.53588008,101510.0,101500.0,0.1]
[1734115827022,0.6237158,101510.0,101500.0,0.1]
[1734115827221,0.93588971,101510.0,101500.0,0.1]
[1734115827417,0.049253,101490.0,101480.0,1.95738982]
[1734115827615,0.410053,101490.0,101480.0,2.00049574]
[1734115828025,0.049253,101490.0,101480.0,2.00049574]
[1734115828326,0.049253,101490.0,101480.0,2.39398589]
[1734115828533,0.049253,101490.0,101480.0,2.11795563]
[1734115828830,0.049253,101490.0,101480.0,2.39422586]
[1734115829031,0.049253,101490.0,101480.0,2.11795563]
[1734115829431,0.049253,101490.0,101480.0,2.39439091]
[1734115829630,0.049253,101490.0,101480.0,2.48732799]
[1734115829834,0.41005,101500.0,101490.0,0.049253]
[1734115830130,0.41005,101500.0,101490.0,0.76883063]
[1734115830328,0.50298708,101500.0,101490.0,0.71957468]
[1734115830523,0.50298708,101500.0,101490.0,0.17647171]
[1734115830725,0.50298708,101500.0,101490.0,0.67647171]
[1734115830927,0.50298708,101500.0,101490.0,0.17647171]
[1734115831121,0.51830487,101500.0,101490.0,0.17647171]
[1734115831321,0.51830487,101500.0,101490.0,0.72572471]
[1734115831530,0.51830487,101500.0,101490.0,0.22572471]
[1734115831733,0.42536779,101500.0,101490.0,0.22572471]
[1734115831921,0.41005,101500.0,101490.0,0.76932707]
[1734115832123,0.3608,101500.0,101490.0,0.30042707]
[1734115832326,0.3608,101500.0,101490.0,0.80042707]
[1734115832637,0.3608,101500.0,101490.0,1.59336415]
[1734115832820,0.42221991,101510.0,101490.0,1.71020729]
[1734115833022,0.50298308,101510.0,101500.0,0.17647488]
[1734115833337,0.50298308,101510.0,101500.0,0.67647488]
[1734115833525,0.50298308,101510.0,101500.0,0.71957305]
[1734115833730,0.50298308,101510.0,101500.0,0.21957305]
[1734115833924,0.14218308,101510.0,101500.0,0.76882105]
[1734115834122,0.049246,101510.0,101500.0,0.76882119]
[1734115834322,0.47720431,101520.0,101500.0,1.12962119]
[1734115834531,0.00147825,101520.0,101510.0,0.31865496]
[1734115834719,0.00147825,101520.0,101510.0,0.71135496]
[1734115834924,0.01679528,101520.0,101510.0,1.59859008]
[1734115835233,0.01679528,101520.0,101510.0,1.95124385]
[1734115835532,0.00147825,101520.0,101510.0,1.657429]
[1734115836529,0.06454779,101540.0,101510.0,1.957429]
[1734115836731,0.02615767,101530.0,101520.0,0.79699072]
[1734115837029,0.0005,101530.0,101520.0,1.59738587]
[1734115837229,0.0005,101530.0,101520.0,1.50444879]
[1734115837435,0.06505079,101530.0,101520.0,1.09441179]
[1734115837635,0.55020906,101530.0,101520.0,0.71951712]
[1734115837832,0.59408297,101530.0,101520.0,0.67642897]
[1734115838520,0.27430853,101550.0,101520.0,0.67642897]
[1734115838727,0.1,101600.0,101580.0,0.10842]
[1734115839030,0.01530997,101620.0,101590.0,1.24027887]
[1734115839225,0.049191,101620.0,101610.0,0.3608]
[1734115839423,0.049191,101620.0,101610.0,1.11683649]
[1734115839732,0.19367747,101620.0,101610.0,1.59332138]
[1734115839933,0.04606578,101620.0,101610.0,1.59332138]
[1734115840127,0.09525878,101620.0,101610.0,1.11683649]
[1734115840331,0.09525878,101620.0,101610.0,1.61683649]
[1734115840831,0.09525878,101620.0,101610.0,0.76492945]
[1734115841543,0.09525878,101620.0,101610.0,1.05737151]
[1734115842735,0.09525878,101620.0,101610.0,1.04132198]
[1734115842938,0.23493384,101620.0,101610.0,0.68052198]
[1734115843127,0.049195,101610.0,101600.0,0.65324206]
[1734115843326,0.049195,101610.0,101600.0,1.04227118]
[1734115843527,0.09526078,101610.0,101600.0,1.04227118]
[1734115844533,0.09526078,101610.0,101600.0,1.09147118]
[1734115845435,0.09526078,101610.0,101600.0,0.70244206]
[1734115845734,0.09526078,101610.0,101600.0,0.41]
[1734115845937,0.09526078,101610.0,101600.0,0.70244206]
[1734115846442,0.09526078,101610.0,101600.0,1.04092747]
[1734115847036,0.09526078,101610.0,101600.0,0.3608]
[1734115848338,0.21346078,101610.0,101600.0,0.3608]
[1734115848726,0.0067797,101610.0,101600.0,0.3608]
[1734115848932,0.0559747,101610.0,101600.0,0.3608]
[1734115849134,0.049192,101620.0,101610.0,0.049194]
[1734115849436,0.01029494,101630.0,101610.0,1.03552587]
[1734115849742,0.049189,101630.0,101620.0,0.58471587]
[1734115849941,0.049189,101630.0,101620.0,0.53552587]
[1734115850134,0.19564376,101630.0,101620.0,0.67472587]
[1734115850336,0.04919,101620.0,101610.0,1.03552587]
[1734115850642,0.04919,101620.0,101610.0,0.53552587]
[1734115851426,0.18886506,101620.0,101610.0,0.53552587]
[1734115851632,0.049195,101610.0,101600.0,0.56722587]
[1734115851836,0.049695,101610.0,101600.0,0.56722587]
[1734115852436,0.049695,101610.0,101600.0,0.53552587]
[1734115853436,0.19564476,101620.0,101600.0,0.53552587]
[1734115853635,0.18887006,101610.0,101600.0,0.17472587]
[1734115853836,0.18887006,101610.0,101590.0,0.8608]
[1734115853837,0.0492,101600.0,101590.0,0.53552587]
[1734115854032,0.0492,101600.0,101590.0,0.67520093]
[1734115854232,0.049697,101610.0,101600.0,0.0492]
[1734115854438,0.049697,101610.0,101600.0,0.58450334]
[1734115854638,0.049697,101610.0,101600.0,1.08450334]
[1734115854836,0.049697,101610.0,101600.0,0.91]
[1734115855434,0.049697,101610.0,101600.0,1.08450334]
[1734115855631,0.049697,101610.0,101600.0,0.53530334]
[1734115855843,0.049697,101610.0,101600.0,0.58450334]
[1734115857644,0.049697,101610.0,101600.0,0.53530334]
[1734115858349,0.049697,101610.0,101600.0,0.3608]
[1734115859047,0.0005,101610.0,101600.0,0.53555634]
[1734115859342,0.049699,101610.0,101600.0,0.3608]
[1734115860040,0.049199,101610.0,101600.0,0.3608]
[1734115860634,0.049199,101610.0,101600.0,0.59413951]
[1734115861435,0.049199,101610.0,101600.0,0.73633258]
[1734115861750,0.049199,101610.0,101600.0,1.29543513]
[1734115862049,0.049199,101610.0,101600.0,1.65398502]
[1734115862644,0.049199,101610.0,101600.0,1.56099195]
[1734115862853,0.049199,101610.0,101600.0,1.51179195]
[1734115863241,0.049199,101610.0,101600.0,1.51256025]
[1734115863446,0.049199,101610.0,101600.0,1.57202523]
[1734115864351,0.049199,101610.0,101600.0,2.00069727]
[1734115865237,0.049199,101610.0,101600.0,2.04989727]
[1734115865441,0.049199,101610.0,101600.0,1.69799023]
[1734115865643,0.16206551,101620.0,101600.0,1.64879023]
[1734115865847,0.42987244,101620.0,101610.0,0.29326569]
[1734115866048,0.55496551,101620.0,101610.0,0.41577188]
[1734115866251,0.049205,101590.0,101580.0,2.171609]
[1734115866450,0.049205,101590.0,101580.0,2.95048861]
[1734115866752,0.049205,101590.0,101580.0,2.96138164]
[1734115867147,0.049205,101590.0,101580.0,2.96070164]
[1734115867959,0.049205,101590.0,101580.0,3.37210672]
[1734115868167,0.049205,101590.0,101580.0,3.35069134]
[1734115868346,0.049205,101590.0,101580.0,3.88695503]
[1734115869353,0.049205,101590.0,101580.0,4.43309426]
[1734115869653,0.049205,101590.0,101580.0,3.88695503]
[1734115869852,0.2168773,101610.0,101580.0,3.88695503]
[1734115870151,0.06326141,101600.0,101590.0,0.77343085]
[1734115870355,0.14219307,101600.0,101590.0,1.53089508]
[1734115870550,0.1543793,101600.0,101590.0,1.11826423]
[1734115870755,0.1543793,101600.0,101590.0,1.53089508]
[1734115871056,0.1543793,101600.0,101590.0,1.11826423]
[1734115871252,0.1543793,101600.0,101590.0,1.53089508]
[1734115871449,0.1543793,101600.0,101590.0,2.00193531]
[1734115871949,0.01218623,101600.0,101590.0,2.64413338]
[1734115872155,0.06138223,101610.0,101600.0,0.0492]
[1734115872349,0.06138223,101610.0,101600.0,2.17622838]
[1734115872651,0.06137923,101620.0,101610.0,0.049195]
[1734115872850,0.06137923,101620.0,101610.0,2.11035001]
[1734115873053,0.06137923,101620.0,101610.0,2.61035001]
[1734115874153,0.049193,101620.0,101610.0,1.73165923]
[1734115875359,0.06142976,101630.0,101620.0,0.04919]
[1734115875548,0.06192576,101640.0,101630.0,0.049185]
[1734115875856,0.06192576,101640.0,101630.0,1.7604423]
[1734115876053,0.01274276,101640.0,101630.0,1.7604423]
[1734115876246,0.0005,101640.0,101630.0,2.63331563]
[1734115876449,0.0005,101640.0,101630.0,3.92113207]
[1734115876656,0.0005,101640.0,101630.0,4.44240909]
[1734115876952,0.05065294,101650.0,101640.0,0.04918]
[1734115877260,0.05065294,101650.0,101640.0,2.6630813]
[1734115877461,0.05065294,101650.0,101640.0,2.6956813]
[1734115877662,0.05065294,101650.0,101640.0,2.1956813]
[1734115877859,0.05115294,101650.0,101640.0,2.1956813]
[1734115878159,0.05115294,101650.0,101640.0,2.6956813]
[1734115878357,0.05115294,101650.0,101640.0,2.2366654]
[1734115878560,0.05115294,101650.0,101640.0,1.8249373]
[1734115878852,0.0005,101650.0,101640.0,2.2366654]
[1734115879060,0.049676,101650.0,101640.0,2.68887279]
[1734115879357,0.049676,101650.0,101640.0,1.8249373]
[1734115879954,0.049176,101650.0,101640.0,1.8249373]
[1734115880152,0.14216907,101650.0,101640.0,1.65016423]
[1734115880358,0.14216907,101650.0,101640.0,0.73826454]
[1734115880556,0.049176,101650.0,101640.0,0.75554454]
[1734115880760,0.049176,101650.0,101640.0,1.25554454]
[1734115880957,0.049676,101650.0,101640.0,1.25554454]
[1734115881461,0.049676,101650.0,101640.0,1.34853761]
[1734115881959,0.049176,101650.0,101640.0,1.34853761]
[1734115882551,0.049176,101650.0,101640.0,1.73794192]
[1734115883058,0.049676,101650.0,101640.0,1.64494885]
[1734115883357,0.049676,101650.0,101640.0,1.34853761]
[1734115883563,0.049676,101650.0,101640.0,1.25554454]
[1734115883965,0.049176,101650.0,101640.0,1.25554454]
[1734115884857,0.049676,101650.0,101640.0,1.25554454]
[1734115885060,0.049676,101650.0,101640.0,1.34853761]
[1734115885955,0.049176,101650.0,101640.0,1.34853761]
[1734115887263,0.049176,101650.0,101640.0,1.70015189]
[1734115887462,0.049176,101650.0,101640.0,1.34853761]
[1734115887855,0.049176,101650.0,101640.0,1.70015189]
[1734115888364,0.049176,101650.0,101640.0,2.54853761]
[1734115888662,0.049176,101650.0,101640.0,2.90015189]
[1734115889065,0.049176,101650.0,101640.0,1.70015189]
[1734115889565,0.049176,101650.0,101640.0,1.34853761]
[1734115889770,0.049176,101650.0,101640.0,1.32874243]
[1734115894469,0.049176,101650.0,101640.0,1.23731761]
[1734115895967,0.049176,101650.0,101640.0,1.56344093]
[1734115896169,0.049176,101650.0,101640.0,1.53030726]
[1734115896776,0.049176,101650.0,101640.0,1.62148451]
[1734115897266,0.049176,101650.0,101640.0,1.85595838]
[1734115897462,0.049172,101660.0,101650.0,0.049171]
[1734115897663,0.049172,101660.0,101650.0,0.73753207]
[1734115897858,0.049172,101660.0,101650.0,1.88617522]
[1734115898064,0.049172,101660.0,101650.0,3.08617522]
[1734115898574,0.049172,101660.0,101650.0,3.08554776]
[1734115899371,0.049172,101660.0,101650.0,2.91258369]
[1734115899559,0.049172,101660.0,101650.0,2.91278508]
[1734115899762,0.049172,101660.0,101650.0,2.29556939]
[1734115900472,0.049172,101660.0,101650.0,2.67990226]
[1734115901074,0.049172,101660.0,101650.0,1.35405655]
[1734115901274,0.14216507,101660.0,101650.0,0.41117812]
[1734115901464,0.14216507,101660.0,101650.0,0.23495429]
[1734115901662,1.16652507,101660.0,101650.0,0.12194629]
[1734115901867,0.049176,101650.0,101640.0,0.13854565]
[1734115902069,0.049176,101650.0,101620.0,0.8608]
[1734115902070,0.049185,101630.0,101620.0,1.0835684]
[1734115902272,0.09299307,101630.0,101620.0,0.66377101]
[1734115902576,0.04919,101620.0,101610.0,0.8939]
[1734115902775,0.04919,101620.0,101610.0,0.71004154]
[1734115903076,0.04919,101620.0,101610.0,0.70954154]
[1734115903881,0.04919,101620.0,101610.0,0.71004154]
[1734115904078,0.04919,101620.0,101610.0,1.21004154]
[1734115904579,0.04919,101620.0,101610.0,1.35222961]
[1734115905079,0.04919,101620.0,101610.0,1.35172961]
[1734115905575,0.04919,101620.0,101610.0,1.25873654]
[1734115905970,0.04919,101620.0,101610.0,1.25923654]
[1734115906382,0.04919,101620.0,101610.0,0.8939]
[1734115906576,0.14218307,101620.0,101610.0,0.3939]
[1734115906767,0.50298307,101620.0,101610.0,0.0331]
[1734115906965,0.50298307,101620.0,101610.0,0.17638336]
[1734115906966,0.53628307,101620.0,101610.0,0.17638336]
[1734115907365,0.17548307,101620.0,101610.0,0.17638336]
[1734115907974,0.17548307,101620.0,101610.0,0.17688336]
[1734115908485,0.08249,101620.0,101610.0,0.53768336]
[1734115908870,0.08249,101620.0,101610.0,0.53718336]
[1734115909078,0.17548307,101620.0,101610.0,0.53718336]
[1734115909281,0.17548307,101620.0,101610.0,0.17638336]
[1734115909875,0.049195,101610.0,101600.0,1.37688336]
[1734115910078,0.14218807,101610.0,101600.0,0.17688336]
[1734115910380,0.14218807,101610.0,101600.0,0.0005]
[1734115910582,0.17238807,101610.0,101600.0,0.0005]
[1734115911078,0.0492,101600.0,101590.0,0.61074477]
[1734115911675,0.14219307,101600.0,101590.0,0.57001485]
[1734115911877,0.14219307,101600.0,101590.0,0.20921485]
[1734115912377,0.14219307,101600.0,101590.0,0.00147636]
[1734115912576,0.50299307,101600.0,101590.0,0.00147636]
[1734115913974,0.41,101600.0,101590.0,0.00147636]
[1734115914280,0.0492,101600.0,101590.0,0.68051292]
[1734115914486,0.0492,101600.0,101590.0,0.71371292]
[1734115914684,0.0492,101600.0,101590.0,1.03767443]
[1734115915874,0.0492,101600.0,101590.0,1.03817443]
[1734115916876,0.0492,101600.0,101590.0,1.03767443]
[1734115918081,0.0492,101600.0,101590.0,1.03817443]
[1734115919079,0.0492,101600.0,101590.0,2.23767443]
[1734115919480,0.0492,101600.0,101590.0,2.55028778]
[1734115919689,0.0492,101600.0,101590.0,2.55837517]
[1734115919983,0.049196,101610.0,101600.0,0.049195]
[1734115920189,0.049196,101610.0,101600.0,0.710321]
[1734115920382,0.049196,101610.0,101600.0,1.210321]
[1734115922383,0.049196,101610.0,101600.0,1.03448807]
[1734115923294,0.14218907,101610.0,101600.0,0.8923]
[1734115923494,0.14218907,101610.0,101600.0,0.53674235]
[1734115923996,0.14218907,101610.0,101600.0,0.3608]
[1734115924996,0.14218907,101610.0,101600.0,0.41]
[1734115925392,0.14218907,101610.0,101600.0,0.58594235]
[1734115925590,0.049196,101610.0,101600.0,0.58594235]
[1734115926498,0.049196,101610.0,101600.0,0.53674235]
[1734115926801,0.14218907,101610.0,101600.0,0.53674235]
[1734115927294,0.049196,101610.0,101600.0,0.53674235]
[1734115928795,0.049196,101610.0,101600.0,0.58594235]
[1734115929189,0.05731247,101610.0,101600.0,0.58594235]
[1734115929486,0.05731247,101610.0,101600.0,0.41]
[1734115929888,0.049196,101610.0,101600.0,0.50299307]
[1734115930095,0.049196,101610.0,101600.0,1.3178673]
[1734115930396,0.049196,101610.0,101600.0,2.04306224]
[1734115930591,0.049196,101610.0,101600.0,3.24306224]
[1734115931488,0.14218907,101610.0,101600.0,1.02728851]
[1734115931691,0.14218907,101610.0,101600.0,1.0266301]
[1734115931692,0.049196,101610.0,101600.0,1.0266301]
[1734115931991,0.049196,101610.0,101600.0,0.96958202]
[1734115932296,0.23518214,101610.0,101600.0,0.60878202]
[1734115932489,0.98163441,101610.0,101590.0,0.64765684]
[1734115932694,1.01375827,101610.0,101600.0,0.17677416]
[1734115932999,1.00150474,101610.0,101600.0,0.17677416]
[1734115933491,1.01375532,101610.0,101600.0,0.17677416]
[1734115933700,1.14834654,101610.0,101600.0,0.17677416]
[1734115933888,0.84834654,101610.0,101600.0,0.17677416]
[1734115934089,0.73112687,101610.0,101600.0,0.17677416]
[1734115934289,0.89653502,101610.0,101600.0,0.17677416]
[1734115934598,0.90442285,101610.0,101600.0,0.17677416]
[1734115934790,1.26182038,101610.0,101600.0,1.6e-07]
[1734115934987,0.049205,101590.0,101580.0,0.6553662]
[1734115935201,0.14219807,101590.0,101580.0,0.6553662]
[1734115935593,0.04921,101580.0,101570.0,0.6889662]
[1734115935793,0.04921,101580.0,101570.0,0.3944]
[1734115936094,0.04921,101580.0,101570.0,0.3939]
[1734115937090,0.04921,101580.0,101570.0,0.3944]
[1734115937287,0.04921,101580.0,101570.0,1.00098226]
[1734115938104,0.04921,101580.0,101570.0,1.00048226]
[1734115938401,0.04921,101580.0,101570.0,0.68845967]
[1734115938605,0.04921,101580.0,101570.0,1.04946031]
[1734115938895,0.04921,101580.0,101570.0,1.54946031]
[1734115939399,0.04921,101580.0,101570.0,1.54945336]
[1734115940098,0.04921,101580.0,101570.0,1.99591804]
[1734115940294,0.04921,101580.0,101570.0,1.70135837]
[1734115940500,0.049205,101590.0,101570.0,1.70135837]
[1734115940800,0.049205,101590.0,101580.0,0.65497957]
[1734115941203,0.049205,101590.0,101580.0,1.15497957]
[1734115941402,0.049205,101590.0,101580.0,1.20418957]
[1734115941792,0.049205,101590.0,101580.0,0.65497957]
[1734115941995,0.049205,101590.0,101580.0,1.10513413]
[1734115942192,0.049205,101590.0,101580.0,1.60513413]
[1734115942400,0.0614312,101600.0,101590.0,0.049205]
[1734115942604,0.049203,101600.0,101590.0,0.82887764]
[1734115942798,0.00147681,101610.0,101590.0,1.98867505]
[1734115942999,0.00147681,101610.0,101600.0,1.18124425]
[1734115943214,0.0614212,101620.0,101610.0,0.049195]
[1734115943521,0.0614212,101620.0,101610.0,1.00298807]
[1734115943711,0.0614212,101620.0,101610.0,0.909995]
[1734115944019,0.0614212,101620.0,101610.0,0.3608]
[1734115944420,0.049193,101620.0,101610.0,0.3608]
[1734115945016,0.0614212,101620.0,101610.0,0.409995]
[1734115945413,0.049193,101620.0,101610.0,0.409995]
[1734115948521,0.049193,101620.0,101610.0,0.3608]
[1734115949414,0.049193,101620.0,101610.0,0.909995]
[1734115949618,0.049193,101620.0,101610.0,1.00298807]
[1734115949826,0.049193,101620.0,101610.0,1.13098448]
[1734115950122,0.049193,101620.0,101610.0,1.63098448]
[1734115950623,0.049193,101620.0,101610.0,1.53799141]
[1734115952225,0.05711767,101630.0,101620.0,0.049191]
[1734115952414,0.049189,101630.0,101620.0,0.442091]
[1734115952726,0.049189,101630.0,101620.0,0.942091]
[1734115953018,0.049189,101630.0,101620.0,0.442091]
[1734115953226,0.14218207,101630.0,101620.0,0.442091]
[1734115953436,0.50298207,101630.0,101620.0,0.278064]
[1734115953620,0.049191,101620.0,101600.0,0.73477957]
[1734115953821,0.15118412,101610.0,101600.0,0.3914]
[1734115954129,0.50298807,101610.0,101600.0,0.0306]
[1734115954427,0.59598114,101610.0,101600.0,0.59034917]
[1734115954618,0.0492,101600.0,101590.0,1.04055118]
[1734115954819,0.14219307,101600.0,101590.0,0.98212422]
[1734115955220,0.14219307,101600.0,101590.0,1.33559583]
[1734115955522,0.14219307,101600.0,101590.0,0.98212422]
[1734115955729,0.14219307,101600.0,101590.0,0.3929]
[1734115956624,0.0492,101600.0,101590.0,0.76334842]
[1734115960931,0.09632911,101610.0,101590.0,2.05634149]
[1734115961133,0.049197,101610.0,101600.0,0.50299307]
[1734115961432,0.049192,101620.0,101610.0,0.049196]
[1734115961622,0.049192,101620.0,101610.0,0.409996]
[1734115961931,0.049192,101620.0,101610.0,0.99897617]
[1734115962626,0.14218507,101620.0,101610.0,0.99897617]
[1734115965930,0.14218507,101620.0,101610.0,0.94978017]
[1734115966128,0.14218507,101620.0,101610.0,0.0327]
[1734115967335,0.23004134,101620.0,101610.0,0.0327]
[1734115969034,0.59084134,101620.0,101610.0,0.0327]
[1734115969434,0.70835424,101620.0,101610.0,0.0327]
[1734115969633,0.59084134,101620.0,101610.0,0.0327]
[1734115970036,0.049196,101610.0,101600.0,0.59583675]
[1734115970237,0.049196,101610.0,101600.0,0.62803675]
[1734115970238,0.14218907,101610.0,101600.0,0.62803675]
[1734115970434,0.049196,101610.0,101600.0,0.67723775]
[1734115970635,0.049196,101610.0,101600.0,1.35424911]
[1734115970939,0.3560868,101630.0,101600.0,1.80071379]
[1734115971241,0.05806639,101620.0,101610.0,0.61125922]
[1734115971538,0.049195,101620.0,101610.0,1.35223411]
[1734115973131,0.049195,101620.0,101610.0,1.58772821]
[1734115973341,0.049195,101620.0,101610.0,1.35223411]
[1734115973543,0.049195,101620.0,101610.0,1.58772486]
[1734115974647,0.049195,101620.0,101610.0,1.59624194]
[1734115975946,0.049195,101620.0,101610.0,1.30192482]